bitfinex-derivatives/quotes_BTCF0:USTF0_20250510
["timestamp","ask_amount","ask_price","bid_price","bid_amount"]
[1746908125052,0.17458024,103290.0,103280.0,2.0651915]
[1746908126661,0.17458024,103290.0,103280.0,1.7658715]
[1746908126960,0.17458024,103290.0,103280.0,2.0637515]
[1746908127963,0.17458024,103290.0,103280.0,1.7658715]
[1746908128155,0.17458024,103290.0,103280.0,2.0637115]
[1746908129867,0.1009,103290.0,103280.0,2.0637115]
[1746908130865,0.1009,103290.0,103280.0,1.81897868]
[1746908131061,0.1009,103290.0,103280.0,2.0637115]
[1746908131265,0.2669,103290.0,103280.0,2.0637115]
[1746908131569,0.2669,103290.0,103280.0,1.7658715]
[1746908131771,0.2669,103290.0,103280.0,2.0635515]
[1746908132369,0.1009,103290.0,103280.0,2.0635515]
[1746908132763,0.1009,103290.0,103280.0,1.7658715]
[1746908133065,0.1009,103290.0,103280.0,2.0635115]
[1746908134374,0.1009,103290.0,103280.0,2.0634715]
[1746908135475,0.1009,103290.0,103280.0,1.7658715]
[1746908135676,0.1009,103290.0,103280.0,2.0634315]
[1746908135976,0.1009,103290.0,103280.0,1.7658715]
[1746908136177,0.2669,103290.0,103280.0,1.7658715]
[1746908136578,0.2669,103290.0,103280.0,2.0633915]
[1746908137080,0.2669,103290.0,103280.0,1.7658715]
[1746908137377,0.1009,103290.0,103280.0,2.0633515]
[1746908138479,0.26432508,103290.0,103280.0,2.0633515]
[1746908139381,0.23242508,103290.0,103280.0,2.0633515]
[1746908139581,0.23242508,103290.0,103280.0,2.0632715]
[1746908140083,0.23242508,103290.0,103280.0,1.7658715]
[1746908140381,0.23242508,103290.0,103280.0,2.0632715]
[1746908143978,0.23242508,103290.0,103280.0,1.7658715]
[1746908144181,0.23242508,103290.0,103280.0,2.0631115]
[1746908145084,0.23242508,103290.0,103280.0,2.1266715]
[1746908145273,0.23242508,103290.0,103280.0,2.4238715]
[1746908145582,0.23242508,103290.0,103280.0,2.1266715]
[1746908145781,0.23242508,103290.0,103280.0,2.4238315]
[1746908145982,0.20122508,103290.0,103280.0,2.1266715]
[1746908146282,0.24770711,103300.0,103290.0,0.1936005]
[1746908146481,0.24770711,103300.0,103290.0,1.65303332]
[1746908146779,0.28000711,103300.0,103290.0,1.65303332]
[1746908146986,0.28000711,103300.0,103290.0,1.74984342]
[1746908147878,0.28000711,103300.0,103290.0,1.62747701]
[1746908148075,0.28000711,103300.0,103290.0,1.62847701]
[1746908149075,0.28000711,103300.0,103290.0,1.75084342]
[1746908149877,0.28000711,103300.0,103290.0,1.91684342]
[1746908150281,0.28000711,103300.0,103290.0,1.75084342]
[1746908153580,0.31140711,103300.0,103290.0,1.75084342]
[1746908153783,0.1637,103300.0,103290.0,1.75084342]
[1746908159087,0.1637,103300.0,103290.0,2.11164342]
[1746908159385,0.1,103300.0,103290.0,2.11164342]
[1746908159590,0.1,103300.0,103290.0,3.27088342]
[1746908161887,0.1,103300.0,103290.0,3.0261506]
[1746908162081,0.1,103300.0,103290.0,3.14851701]
[1746908162288,0.1624,103300.0,103290.0,3.14851701]
[1746908162791,0.1624,103300.0,103290.0,3.27088342]
[1746908165796,0.26104801,103300.0,103290.0,3.27088342]
[1746908173388,0.1624,103300.0,103290.0,3.27088342]
[1746908173596,0.35011319,103300.0,103290.0,3.27088342]
[1746908174692,0.35011319,103300.0,103290.0,3.41880342]
[1746908181703,0.26112043,103300.0,103290.0,3.41880342]
[1746908183397,0.29242043,103300.0,103290.0,3.29643701]
[1746908186504,0.29242043,103300.0,103290.0,3.41880342]
[1746908186804,0.29242043,103300.0,103290.0,3.29643701]
[1746908189407,0.29242043,103300.0,103290.0,3.41880342]
[1746908191809,0.29242043,103300.0,103290.0,3.29643701]
[1746908192312,0.29242043,103300.0,103290.0,3.41880342]
[1746908195815,0.29242043,103300.0,103290.0,3.29643701]
[1746908199414,0.31710054,103300.0,103290.0,3.29643701]
[1746908200406,0.48310054,103300.0,103290.0,3.29643701]
[1746908203119,0.31710054,103300.0,103290.0,3.29643701]
[1746908204912,0.31710054,103300.0,103290.0,3.14851701]
[1746908205116,0.31710054,103300.0,103290.0,3.44107701]
[1746908205309,0.48310054,103300.0,103290.0,3.44107701]
[1746908207124,0.31710054,103300.0,103290.0,3.44107701]
[1746908208221,0.48310054,103300.0,103290.0,3.44107701]
[1746908210826,0.52310674,103300.0,103290.0,3.44107701]
[1746908215226,0.35710674,103300.0,103290.0,3.44107701]
[1746908215522,0.35710674,103300.0,103290.0,3.56344342]
[1746908217227,0.52310674,103300.0,103290.0,3.56344342]
[1746908217829,0.52310674,103300.0,103290.0,3.44107701]
[1746908220133,0.35710674,103300.0,103290.0,3.44107701]
[1746908221127,0.52310674,103300.0,103290.0,3.44107701]
[1746908221320,0.52310674,103300.0,103290.0,3.56344342]
[1746908222228,0.35710674,103300.0,103290.0,3.56344342]
[1746908226229,0.52310674,103300.0,103290.0,3.44107701]
[1746908227231,0.52310674,103300.0,103290.0,3.56344342]
[1746908229239,0.52310674,103300.0,103290.0,2.5585306]
[1746908229537,0.52310674,103300.0,103290.0,2.82577701]
[1746908231741,0.52310674,103300.0,103290.0,2.7034106]
[1746908231930,0.52310674,103300.0,103290.0,2.82577701]
[1746908233140,0.52310674,103300.0,103290.0,2.7034106]
[1746908233332,0.52310674,103300.0,103290.0,2.82577701]
[1746908236744,0.52310674,103300.0,103290.0,2.53541701]
[1746908236941,0.52310674,103300.0,103290.0,2.82549701]
[1746908241141,0.52310674,103300.0,103290.0,2.7031306]
[1746908241341,0.52310674,103300.0,103290.0,2.82549701]
[1746908242337,0.52310674,103300.0,103290.0,2.7031306]
[1746908242641,0.52310674,103300.0,103290.0,2.82549701]
[1746908244342,0.52310674,103300.0,103290.0,2.53541701]
[1746908244545,0.52310674,103300.0,103290.0,2.82401701]
[1746908248543,0.52310674,103300.0,103290.0,2.88751701]
[1746908251244,0.52310674,103300.0,103290.0,1.72827701]
[1746908253451,0.52310674,103300.0,103290.0,1.85064342]
[1746908253940,0.52310674,103300.0,103290.0,1.72827701]
[1746908259055,0.52310674,103300.0,103290.0,1.36747701]
[1746908259552,0.52310674,103300.0,103290.0,2.08907701]
[1746908262056,0.49180674,103300.0,103290.0,2.08907701]
[1746908262558,0.51611331,103300.0,103290.0,2.21144342]
[1746908263154,0.51611331,103300.0,103290.0,2.08907701]
[1746908267759,0.51611331,103300.0,103290.0,1.8223906]
[1746908268262,0.54921331,103300.0,103290.0,1.94475701]
[1746908270162,0.54921331,103300.0,103290.0,2.08815701]
[1746908275763,0.54921331,103300.0,103290.0,1.9657906]
[1746908275963,0.52490626,103300.0,103290.0,1.72735701]
[1746908276566,0.52490626,103300.0,103290.0,1.6049906]
[1746908276868,0.52490626,103300.0,103290.0,1.72735701]
[1746908278467,0.52490626,103300.0,103290.0,2.08815701]
[1746908286379,0.46080626,103300.0,103290.0,2.21052342]
[1746908286572,0.42940626,103300.0,103290.0,2.21052342]
[1746908287180,0.26340626,103300.0,103290.0,2.37652342]
[1746908290187,0.26340626,103300.0,103290.0,2.21052342]
[1746908290681,0.32700626,103300.0,103290.0,2.21052342]
[1746908290878,0.32700626,103300.0,103290.0,1.92284342]
[1746908291079,0.35880626,103300.0,103290.0,2.08635701]
[1746908291387,0.35880626,103300.0,103290.0,2.08631701]
[1746908292086,0.52480626,103300.0,103290.0,2.08631701]
[1746908292785,0.48480006,103300.0,103290.0,2.08631701]
[1746908296588,0.46008746,103300.0,103290.0,2.08631701]
[1746908297894,0.65368856,103300.0,103290.0,2.08611701]
[1746908298086,0.53008746,103300.0,103290.0,1.86511701]
[1746908300989,0.53008746,103300.0,103290.0,1.7427506]
[1746908301187,0.72368856,103300.0,103290.0,1.86511701]
[1746908301397,0.91368856,103300.0,103290.0,0.7493799]
[1746908301586,0.91368856,103300.0,103290.0,0.87174631]
[1746908301786,0.91368856,103300.0,103290.0,1.23254631]
[1746908302193,0.91368856,103300.0,103290.0,0.87174631]
[1746908302694,0.91668856,103300.0,103290.0,0.87174631]
[1746908303194,0.91368856,103300.0,103290.0,0.87074631]
[1746908303384,0.91468856,103300.0,103290.0,1.23154631]
[1746908303584,0.91868856,103300.0,103290.0,1.1101799]
[1746908303789,0.91868856,103300.0,103290.0,1.23254631]
[1746908304195,0.91668856,103300.0,103290.0,1.23154631]
[1746908304392,0.91668856,103300.0,103290.0,1.1091799]
[1746908304592,0.91668856,103300.0,103290.0,1.23154631]
[1746908305294,0.93872792,103300.0,103290.0,1.23154631]
[1746908307187,0.93872792,103300.0,103290.0,0.87074631]
[1746908308190,0.93872792,103300.0,103290.0,1.23154631]
[1746908308392,0.93872792,103300.0,103290.0,0.87074631]
[1746908308893,1.00587524,103300.0,103290.0,0.87074631]
[1746908314503,1.00587524,103300.0,103290.0,1.23154631]
[1746908315103,1.00587524,103300.0,103290.0,1.26414631]
[1746908315301,0.55227414,103300.0,103290.0,1.41255641]
[1746908315504,0.74587524,103300.0,103290.0,1.41255641]
[1746908316108,0.57987524,103300.0,103290.0,1.41255641]
[1746908316298,0.38627414,103300.0,103290.0,1.41255641]
[1746908316809,0.36156166,103300.0,103290.0,1.41255641]
[1746908317306,0.55516276,103300.0,103290.0,1.41255641]
[1746908317899,0.36156166,103300.0,103290.0,1.41255641]
[1746908318195,0.55516276,103300.0,103290.0,1.29019]
[1746908318400,0.55516276,103300.0,103290.0,1.41255641]
[1746908319319,0.55316276,103300.0,103290.0,1.41255641]
[1746908319503,0.55516276,103300.0,103290.0,1.41255641]
[1746908321105,0.55516276,103300.0,103290.0,1.05175641]
[1746908321399,0.55416276,103300.0,103290.0,1.41255641]
[1746908321601,0.55516276,103300.0,103290.0,1.41255641]
[1746908323705,0.36156166,103300.0,103290.0,1.39255641]
[1746908324108,0.55516276,103300.0,103290.0,1.39255641]
[1746908324515,0.55416276,103300.0,103290.0,1.47255641]
[1746908324719,0.55516276,103300.0,103290.0,1.47255641]
[1746908326718,0.36156166,103300.0,103290.0,1.47255641]
[1746908330522,0.36156166,103300.0,103290.0,1.39255641]
[1746908333019,0.36156166,103300.0,103290.0,1.03175641]
[1746908333320,0.36156166,103300.0,103290.0,1.39255641]
[1746908334925,0.36156166,103300.0,103290.0,1.03175641]
[1746908335125,0.36156166,103300.0,103290.0,1.39255641]
[1746908337131,0.38627414,103300.0,103290.0,1.39255641]
[1746908339322,0.38627414,103300.0,103290.0,1.03175641]
[1746908339517,0.38627414,103300.0,103290.0,1.39255641]
[1746908340523,0.38627414,103300.0,103290.0,1.03175641]
[1746908340828,0.38627414,103300.0,103290.0,1.39255641]
[1746908343329,0.38627414,103300.0,103290.0,1.03175641]
[1746908343526,0.38627414,103300.0,103290.0,1.39255641]
[1746908344430,0.35447414,103300.0,103290.0,1.39255641]
[1746908345323,0.35447414,103300.0,103290.0,1.27019]
[1746908345519,0.66607524,103300.0,103290.0,1.20411]
[1746908345826,0.50537414,103300.0,103290.0,0.86886631]
[1746908346128,0.67137414,103300.0,103290.0,0.86886631]
[1746908346431,0.55137414,103300.0,103290.0,1.03177641]
[1746908346628,1.23408341,103320.0,103310.0,0.1935824]
[1746908346832,0.54968341,103320.0,103310.0,1.66147522]
[1746908347130,0.54968341,103320.0,103310.0,1.89157522]
[1746908347324,0.54968341,103320.0,103310.0,1.89911891]
[1746908347723,0.54968341,103320.0,103310.0,1.89711891]
[1746908348132,0.54968341,103320.0,103310.0,1.73111891]
[1746908348328,0.3743145,103320.0,103310.0,1.73111891]
[1746908349426,0.3743145,103320.0,103310.0,1.74094427]
[1746908349624,0.3743145,103320.0,103310.0,1.74294427]
[1746908350437,0.37594264,103320.0,103310.0,1.74294427]
[1746908350733,0.86187265,103320.0,103310.0,1.2235725]
[1746908350926,0.95627265,103320.0,103310.0,0.7659624]
[1746908351232,1.12227265,103320.0,103310.0,0.7659624]
[1746908352139,1.12427265,103320.0,103310.0,0.7659624]
[1746908352826,1.12427265,103320.0,103310.0,0.7639624]
[1746908352827,1.12627265,103320.0,103310.0,0.7639624]
[1746908353341,1.00190624,103320.0,103310.0,0.7639624]
[1746908353636,0.72807793,103320.0,103310.0,0.7639624]
[1746908357933,0.62959174,103320.0,103310.0,0.7639624]
[1746908358636,0.1935824,103310.0,103300.0,0.5059921]
[1746908358849,0.68694881,103310.0,103300.0,1.0618761]
[1746908359138,0.4645824,103310.0,103300.0,1.15866746]
[1746908359435,0.46621054,103310.0,103300.0,0.92023387]
[1746908359641,0.46621054,103310.0,103300.0,0.79786746]
[1746908359835,0.46621054,103310.0,103300.0,1.15866746]
[1746908360035,0.46621054,103310.0,103300.0,1.16066746]
[1746908361140,0.46721054,103310.0,103300.0,1.15866746]
[1746908361450,0.56560837,103310.0,103300.0,1.15866746]
[1746908361840,0.56560837,103310.0,103300.0,1.16066746]
[1746908362641,0.56560837,103310.0,103300.0,1.15866746]
[1746908363732,0.56560837,103310.0,103300.0,1.28103387]
[1746908365539,0.56560837,103310.0,103300.0,1.34363387]
[1746908365742,0.56560837,103310.0,103300.0,0.98283387]
[1746908366041,0.56560837,103310.0,103300.0,1.34363387]
[1746908366242,0.39960837,103310.0,103300.0,1.34363387]
[1746908368634,0.39960837,103310.0,103300.0,0.98283387]
[1746908369351,0.39960837,103310.0,103300.0,0.86046746]
[1746908369544,0.39960837,103310.0,103300.0,0.98283387]
[1746908369849,0.39960837,103310.0,103300.0,1.34363387]
[1746908370047,0.39960837,103310.0,103300.0,0.98283387]
[1746908370249,0.56560837,103310.0,103300.0,0.98283387]
[1746908370441,0.50721881,103310.0,103300.0,1.34363387]
[1746908370641,0.6302161,103310.0,103300.0,0.98283387]
[1746908370843,0.6302161,103310.0,103300.0,1.28103387]
[1746908371741,0.6302161,103310.0,103300.0,1.15866746]
[1746908373147,0.4642161,103310.0,103300.0,1.15866746]
[1746908374242,0.74258251,103310.0,103300.0,1.15866746]
[1746908374447,0.8702161,103310.0,103300.0,1.15866746]
[1746908376951,0.8702161,103310.0,103300.0,1.19026746]
[1746908377249,0.8702161,103310.0,103300.0,1.22076746]
[1746908381143,0.7042161,103310.0,103300.0,1.22076746]
[1746908381351,0.7042161,103310.0,103300.0,1.34313387]
[1746908382856,0.72886548,103310.0,103300.0,1.34313387]
[1746908383241,0.72886548,103310.0,103300.0,1.22076746]
[1746908383446,0.72886548,103310.0,103300.0,1.34313387]
[1746908385053,0.53528308,103310.0,103300.0,1.34313387]
[1746908385258,0.70128308,103310.0,103300.0,1.34313387]
[1746908386155,0.72886548,103310.0,103300.0,1.34313387]
[1746908390059,0.72886548,103310.0,103300.0,0.98233387]
[1746908390260,0.72886548,103310.0,103300.0,1.34313387]
[1746908394459,0.53528308,103310.0,103300.0,1.34313387]
[1746908398875,0.53528308,103310.0,103300.0,0.98233387]
[1746908399069,0.53528308,103310.0,103300.0,1.34313387]
[1746908400180,0.53528308,103310.0,103300.0,1.50913387]
[1746908401177,0.53528308,103310.0,103300.0,1.34313387]
[1746908402373,0.53528308,103310.0,103300.0,1.62522028]
[1746908402374,0.19028308,103310.0,103300.0,1.62522028]
[1746908402571,0.19028308,103310.0,103300.0,1.92522028]
[1746908402767,0.19028308,103310.0,103300.0,1.68048746]
[1746908403168,0.19028308,103310.0,103300.0,2.09122028]
[1746908403679,0.18928308,103310.0,103300.0,2.09322028]
[1746908403980,0.16500035,103310.0,103300.0,2.09522028]
[1746908405169,0.16500035,103310.0,103300.0,2.09322028]
[1746908405374,0.16500035,103310.0,103300.0,2.09522028]
[1746908406178,0.16500035,103310.0,103300.0,1.92922028]
[1746908407370,0.10024352,103310.0,103300.0,1.92922028]
[1746908412077,0.10024352,103310.0,103300.0,2.29002028]
[1746908415076,0.10024352,103310.0,103300.0,1.56842028]
[1746908415277,0.10024352,103310.0,103300.0,2.29002028]
[1746908416077,0.13164352,103310.0,103300.0,2.29002028]
[1746908416477,0.32164352,103310.0,103300.0,1.48653387]
[1746908416785,0.38454352,103310.0,103300.0,1.48653387]
[1746908417180,0.55054352,103310.0,103300.0,1.48653387]
[1746908419579,0.55054352,103310.0,103300.0,1.34713387]
[1746908419779,0.55054352,103310.0,103300.0,1.48645387]
[1746908421183,0.74412592,103310.0,103300.0,1.28503387]
[1746908421486,0.74412592,103310.0,103300.0,1.42475387]
[1746908422180,0.86649233,103310.0,103300.0,0.86682]
[1746908422380,0.86649233,103310.0,103300.0,1.0604211]
[1746908423392,0.74412592,103310.0,103300.0,1.0604211]
[1746908424892,1.10492592,103310.0,103300.0,0.6996211]
[1746908425093,0.74412592,103310.0,103300.0,0.6996211]
[1746908426191,0.80888278,103310.0,103300.0,0.6996211]
[1746908428883,0.93124919,103310.0,103300.0,0.6996211]
[1746908429286,1.29204919,103310.0,103300.0,0.5276011]
[1746908431294,1.29304919,103310.0,103300.0,0.5256011]
[1746908431495,1.29304919,103310.0,103300.0,0.5558011]
[1746908431792,1.29304919,103310.0,103300.0,0.5538011]
[1746908434894,1.17068278,103310.0,103300.0,0.5538011]
[1746908436898,1.29304919,103310.0,103300.0,0.5236011]
[1746908437284,1.17068278,103310.0,103300.0,0.5236011]
[1746908437488,1.29304919,103310.0,103300.0,0.5537011]
[1746908439399,1.31733192,103310.0,103300.0,0.5537011]
[1746908441001,1.19496551,103310.0,103300.0,0.5537011]
[1746908441190,1.31733192,103310.0,103300.0,0.5537011]
[1746908450105,1.19496551,103310.0,103300.0,0.5537011]
[1746908450499,1.31733192,103310.0,103300.0,0.5537011]
[1746908451189,1.39357556,103310.0,103300.0,0.5537011]
[1746908452699,1.03277556,103310.0,103300.0,0.5537011]
[1746908452893,1.39357556,103310.0,103300.0,0.5537011]
[1746908459509,1.39357556,103310.0,103300.0,0.6190011]
[1746908460714,1.27120915,103310.0,103300.0,0.6190011]
[1746908462816,1.12356248,103310.0,103300.0,0.6190011]
[1746908463204,0.95756248,103310.0,103300.0,0.6190011]
[1746908463805,0.95756248,103310.0,103300.0,0.74136751]
[1746908464915,0.95756248,103310.0,103300.0,0.6190011]
[1746908466009,0.88131884,103310.0,103300.0,0.6190011]
[1746908469319,1.00368525,103310.0,103300.0,0.6190011]
[1746908469718,1.07992889,103310.0,103300.0,0.6190011]
[1746908471123,1.24592889,103310.0,103300.0,0.6190011]
[1746908472125,1.07992889,103310.0,103300.0,0.6190011]
[1746908473928,0.71912889,103310.0,103300.0,0.6190011]
[1746908474119,1.07992889,103310.0,103300.0,0.6190011]
[1746908477129,1.24592889,103310.0,103300.0,0.6190011]
[1746908480132,1.07992889,103310.0,103300.0,0.6190011]
[1746908482132,1.24592889,103310.0,103300.0,0.6190011]
[1746908483326,1.07992889,103310.0,103300.0,0.6190011]
[1746908485830,1.07992889,103310.0,103300.0,0.2301]
[1746908486026,1.07992889,103310.0,103300.0,0.4237011]
[1746908486226,1.24592889,103310.0,103300.0,0.4237011]
[1746908486426,1.24592889,103310.0,103300.0,0.2301]
[1746908486626,1.25582384,103310.0,103300.0,0.2301]
[1746908487537,1.25582384,103310.0,103300.0,0.4237011]
[1746908487929,1.39354384,103310.0,103300.0,0.2301]
[1746908488734,2.07794384,103310.0,103300.0,0.2301]
[1746908489932,1.95557743,103310.0,103300.0,0.4237011]
[1746908490137,1.94568248,103310.0,103300.0,0.4237011]
[1746908490336,2.06804889,103310.0,103300.0,0.2237011]
[1746908491839,2.06804889,103310.0,103300.0,0.0301]
[1746908493037,1.70724889,103310.0,103300.0,0.0301]
[1746908493338,2.06804889,103310.0,103300.0,0.0301]
[1746908494423,2.07757321,103310.0,103300.0,0.0301]
[1746908499037,0.1936199,103290.0,103280.0,0.01]
[1746908499242,1.37758631,103290.0,103280.0,0.0722]
[1746908499436,1.73568086,103290.0,103280.0,0.0722]
[1746908499737,1.61331445,103290.0,103280.0,0.0722]
[1746908499942,1.73568086,103290.0,103280.0,0.0322]
[1746908500134,0.1936574,103270.0,103260.0,0.41077689]
[1746908500335,0.67602381,103270.0,103260.0,0.81077689]
[1746908500540,0.58235195,103270.0,103260.0,0.81077689]
[1746908501233,0.78035195,103270.0,103260.0,0.84297689]
[1746908501436,0.78135195,103270.0,103260.0,0.84997689]
[1746908501828,0.78135195,103270.0,103260.0,0.65631789]
[1746908502036,1.14215195,103270.0,103260.0,0.20375789]
[1746908502338,1.14215195,103270.0,103260.0,0.07375789]
[1746908502339,1.27951195,103270.0,103260.0,0.07375789]
[1746908502528,1.28051195,103270.0,103260.0,0.08075789]
[1746908502934,1.27951195,103270.0,103260.0,0.07375789]
[1746908503135,1.27951195,103270.0,103260.0,0.06675789]
[1746908505146,1.27951195,103270.0,103260.0,0.26043399]
[1746908506655,1.44235917,103270.0,103260.0,0.26043399]
[1746908507151,1.44235917,103270.0,103260.0,0.06675789]
[1746908508952,1.31999276,103270.0,103260.0,0.26043399]
[1746908509156,1.44235917,103270.0,103260.0,0.06675789]
[1746908509951,1.44235917,103270.0,103260.0,0.09965789]
[1746908510152,1.44235917,103270.0,103260.0,0.29333399]
[1746908510550,1.44235917,103270.0,103260.0,0.07965789]
[1746908512352,1.30499917,103270.0,103260.0,0.07965789]
[1746908512554,1.31452804,103270.0,103260.0,0.07965789]
[1746908513052,1.24972341,103270.0,103260.0,0.07965789]
[1746908513553,1.38684341,103270.0,103260.0,0.07965789]
[1746908516856,1.38684341,103270.0,103260.0,0.27333399]
[1746908519261,1.37731454,103270.0,103260.0,0.27333399]
[1746908519452,1.37731454,103270.0,103260.0,0.30353399]
[1746908520157,1.21131454,103270.0,103260.0,0.30353399]
[1746908521160,1.37731454,103270.0,103260.0,0.30353399]
[1746908523263,1.21131454,103270.0,103260.0,0.30353399]
[1746908524161,1.37731454,103270.0,103260.0,0.30353399]
[1746908525464,1.46671003,103270.0,103260.0,0.30353399]
[1746908526761,1.20722362,103270.0,103260.0,0.31353399]
[1746908526952,0.55606622,103270.0,103260.0,0.5059004]
[1746908527153,0.39372362,103270.0,103260.0,0.89110504]
[1746908527360,0.38372362,103270.0,103260.0,0.90553863]
[1746908531054,0.38372362,103270.0,103260.0,0.78317222]
[1746908531267,0.38372362,103270.0,103260.0,0.61717222]
[1746908531964,0.38672362,103270.0,103260.0,0.61717222]
[1746908532364,0.38472362,103270.0,103260.0,0.61717222]
[1746908532569,0.38572362,103270.0,103260.0,0.61717222]
[1746908534064,0.38372362,103270.0,103260.0,0.61717222]
[1746908535370,0.35940241,103270.0,103260.0,0.61717222]
[1746908537172,0.72020241,103270.0,103260.0,0.61717222]
[1746908538973,0.38372362,103270.0,103260.0,0.61717222]
[1746908540473,0.41662362,103270.0,103260.0,0.61717222]
[1746908540973,0.44662362,103270.0,103260.0,0.61717222]
[1746908542174,0.44562362,103270.0,103260.0,0.61817222]
[1746908543072,0.29821692,103270.0,103260.0,0.61817222]
[1746908546369,0.42127586,103270.0,103260.0,0.61817222]
[1746908548369,0.45257586,103270.0,103260.0,0.61817222]
[1746908549475,0.47692362,103270.0,103260.0,0.61817222]
[1746908550175,0.47692362,103270.0,103260.0,0.74053863]
[1746908550376,0.47692362,103270.0,103260.0,0.61817222]
[1746908552483,0.48692362,103270.0,103260.0,0.61817222]
[1746908552970,0.48692362,103270.0,103260.0,0.74053863]
[1746908553775,0.23196622,103270.0,103260.0,0.86290504]
[1746908553974,0.41562362,103270.0,103260.0,1.27133863]
[1746908554277,0.41562362,103270.0,103260.0,1.14897222]
[1746908554478,0.41562362,103270.0,103260.0,0.91053863]
[1746908554981,0.44702362,103270.0,103260.0,0.91053863]
[1746908556177,0.44702362,103270.0,103260.0,1.27133863]
[1746908556478,0.44702362,103270.0,103260.0,0.91053863]
[1746908556780,0.44702362,103270.0,103260.0,1.27133863]
[1746908557077,0.42277948,103270.0,103260.0,1.27133863]
[1746908557874,0.22912208,103270.0,103260.0,1.27133863]
[1746908558379,0.26182208,103270.0,103260.0,1.27133863]
[1746908559378,0.26182208,103270.0,103260.0,1.30133863]
[1746908559777,0.26182208,103270.0,103260.0,1.17897222]
[1746908559981,0.26182208,103270.0,103260.0,1.30133863]
[1746908561381,0.28606622,103270.0,103260.0,1.30133863]
[1746908563768,0.22196622,103270.0,103260.0,1.30133863]
[1746908563979,0.22196622,103270.0,103260.0,1.17897222]
[1746908564278,0.25316622,103270.0,103260.0,1.46733863]
[1746908565084,0.25316622,103270.0,103260.0,1.30133863]
[1746908565683,0.21313484,103270.0,103260.0,1.16453863]
[1746908565982,1.28275865,103270.0,103260.0,0.59523399]
[1746908566179,1.32639224,103270.0,103260.0,0.59523399]
[1746908566378,1.44875865,103270.0,103260.0,0.59523399]
[1746908566777,2.13315865,103270.0,103260.0,0.59523399]
[1746908567883,2.13315865,103270.0,103260.0,0.52523399]
[1746908569677,2.13315865,103270.0,103260.0,0.55563399]
[1746908569879,2.2459821,103270.0,103260.0,0.55563399]
[1746908573586,2.17319003,103270.0,103260.0,0.55563399]
[1746908575192,2.17319003,103270.0,103260.0,0.52523399]
[1746908575788,2.17319003,103270.0,103260.0,0.55723399]
[1746908577691,2.17319003,103270.0,103260.0,0.42123399]
[1746908578195,0.1936761,103260.0,103250.0,0.19514778]
[1746908578389,1.24570892,103260.0,103250.0,0.44514778]
[1746908578589,1.12497065,103260.0,103250.0,0.44514778]
[1746908578990,1.12497065,103260.0,103250.0,0.47724778]
[1746908579191,1.29097065,103260.0,103250.0,0.47724778]
[1746908579396,1.29097065,103260.0,103250.0,0.47924778]
[1746908580195,1.29197065,103260.0,103250.0,0.48124778]
[1746908580398,1.45511457,103260.0,103250.0,0.48124778]
[1746908581796,1.33274816,103260.0,103250.0,0.48124778]
[1746908582299,1.45511457,103260.0,103250.0,0.48124778]
[1746908583297,1.33274816,103260.0,103250.0,0.51124778]
[1746908584097,1.33274816,103260.0,103250.0,0.54294778]
[1746908590488,1.35704232,103260.0,103250.0,0.54294778]
[1746908592805,1.35704232,103260.0,103250.0,0.54094778]
[1746908593202,1.35604232,103260.0,103250.0,0.53994778]
[1746908594906,1.20863562,103260.0,103250.0,0.53994778]
[1746908597712,1.33100203,103260.0,103250.0,0.53994778]
[1746908597898,1.33100203,103260.0,103250.0,0.47824778]
[1746908598507,1.47840873,103260.0,103250.0,0.47824778]
[1746908599109,1.48040873,103260.0,103250.0,0.47824778]
[1746908599607,1.48240873,103260.0,103250.0,0.47824778]
[1746908601611,1.48040873,103260.0,103250.0,0.47824778]
[1746908601805,1.48240873,103260.0,103250.0,0.47824778]
[1746908605311,1.55361005,103260.0,103250.0,0.47824778]
[1746908608814,1.40620335,103260.0,103250.0,0.47824778]
[1746908609213,1.28383694,103260.0,103250.0,0.47824778]
[1746908609416,1.28383694,103260.0,103250.0,0.50984778]
[1746908609608,1.28383694,103260.0,103250.0,0.54134778]
[1746908610617,1.06383694,103260.0,103250.0,0.54134778]
[1746908613217,0.53703694,103260.0,103250.0,0.82971419]
[1746908613412,0.47273694,103260.0,103250.0,0.82971419]
[1746908613615,0.24686084,103260.0,103250.0,0.9265618]
[1746908613814,0.31053694,103260.0,103250.0,0.9265618]
[1746908614011,0.31053694,103260.0,103250.0,0.9865618]
[1746908614621,0.30853694,103260.0,103250.0,0.9865618]
[1746908615006,0.30853694,103260.0,103250.0,1.3473618]
[1746908616117,0.30853694,103260.0,103250.0,1.1813618]
[1746908616319,0.38320072,103260.0,103250.0,1.1803618]
[1746908617118,0.38320072,103260.0,103250.0,1.3463618]
[1746908618211,0.38320072,103260.0,103250.0,1.1803618]
[1746908618621,0.38320072,103260.0,103250.0,1.1203618]
[1746908621324,0.38320072,103260.0,103250.0,1.11890892]
[1746908624219,0.38320072,103260.0,103250.0,0.75810892]
[1746908624423,0.35844926,103260.0,103250.0,1.11890892]
[1746908627833,0.35844926,103260.0,103250.0,1.25334892]
[1746908629829,0.35844926,103260.0,103250.0,1.35334892]
[1746908632336,0.38954926,103260.0,103250.0,1.35334892]
[1746908633530,0.42274926,103260.0,103250.0,1.35334892]
[1746908635041,0.42408057,103260.0,103250.0,1.35334892]
[1746908637144,0.42408057,103260.0,103250.0,1.51934892]
[1746908637632,0.42408057,103260.0,103250.0,1.65398892]
[1746908638235,0.42408057,103260.0,103250.0,1.48798892]
[1746908638440,0.45578057,103260.0,103250.0,1.48798892]
[1746908641444,0.45578057,103260.0,103250.0,1.36562251]
[1746908641644,0.45578057,103260.0,103250.0,1.48798892]
[1746908642447,0.45578057,103260.0,103250.0,1.12718892]
[1746908642648,0.45578057,103260.0,103250.0,1.48798892]
[1746908644151,0.62178057,103260.0,103250.0,1.48798892]
[1746908645147,0.45578057,103260.0,103250.0,1.48798892]
[1746908647049,0.26210447,103260.0,103250.0,1.48798892]
[1746908647548,0.45578057,103260.0,103250.0,1.48798892]
[1746908647750,0.26210447,103260.0,103250.0,1.48798892]
[1746908649049,0.42810447,103260.0,103250.0,1.48798892]
[1746908650353,0.26210447,103260.0,103250.0,1.48798892]
[1746908654747,0.16610447,103260.0,103250.0,1.61035533]
[1746908654947,0.16610447,103260.0,103250.0,1.48798892]
[1746908656059,0.16610447,103260.0,103250.0,1.71798892]
[1746908656253,0.16610447,103260.0,103250.0,1.88398892]
[1746908657555,0.16610447,103260.0,103250.0,1.88598892]
[1746908658256,0.16710447,103260.0,103250.0,1.72198892]
[1746908658854,0.00395945,103260.0,103250.0,1.59962251]
[1746908659050,0.00395945,103260.0,103250.0,1.72198892]
[1746908661849,0.03475945,103260.0,103250.0,1.72198892]
[1746908662059,0.15787309,103260.0,103250.0,1.72198892]
[1746908664955,0.15787309,103260.0,103250.0,1.59962251]
[1746908665149,0.15787309,103260.0,103250.0,1.72198892]
[1746908666360,0.03475945,103260.0,103250.0,1.72198892]
[1746908667857,0.00395945,103260.0,103250.0,1.84435533]
[1746908668261,0.00395945,103260.0,103250.0,2.01035533]
[1746908670164,0.00395945,103260.0,103250.0,1.84435533]
[1746908671259,0.1025897,103260.0,103250.0,1.84435533]